Cogmind - Beta 13 @@@ ROGUE MODE // 2024.03.24 @ 22:49:19 Player: puppuppit Result: Destroyed by G-73 Enforcer with Phase Gun Performance ------------- Evolutions (9) 4500 Regions Visited (27) 5400 Robots Destroyed (472) 2360 Value Destroyed (19570) 19570 Prototype IDs (80) 1600 Alien Tech Used (0) 0 Bonus (16299) 16299 TOTAL SCORE: 49729 Bonus ------- Triggered High Security 1000 Triggered Max Security 1000 High Alert Combat Kills 7590 Follower Combat Kills 1175 Entered Garrisons 600 Aligned with FarCom 300 Acquired ECA 300 Met Warlord at Base 500 MAIN.C Attacked Warlord 500 Warlord Defense Kills 2454 Met Warlord at Research 2000 Invited to Help at Command 2000 Friendly Fire -3120 Cogmind --------- Core Integrity 0/1600 Matter 198/300 Energy 47/100 System Corruption 15% Temperature Cool (12) Movement Flying (40) Location -1/Command Parts ------- > --- POWER (2) -------- (None) > --- PROPULSION (6) --- Xenon Bombardment Thruster > --- UTILITY (14) ----- Experimental Optical Array Advanced Target Analyzer Experimental Core Analyzer Improved Armor Integrity Analyzer Hacking Suite System Shield > --- WEAPON (3) ------- (None) > --- INVENTORY (5) ---- Combat Linear Gravjet Advanced Force Field Trap Reconfigurator Peak State ------------ > --- POWER ------------ Cooled Antimatter Reactor Improved Quantum Reactor > --- PROPULSION ------- Combat Antigrav System Cooled Linear Gravjet Cooled Linear Gravjet Combat Linear Gravjet Combat Linear Gravjet Combat Linear Gravjet > --- UTILITY ---------- Advanced Cooling System Medium Storage Unit Experimental Optical Array Advanced Targeting Computer Experimental Targeting Computer Advanced Target Analyzer Advanced Target Analyzer Experimental Core Analyzer Improved Armor Integrity Analyzer Experimental Reaction Control System Improved Powered Armor Hacking Suite System Shield Trap Reconfigurator > --- WEAPON ----------- Compact Linear Accelerator Compact Linear Accelerator Micro-nuke Launcher > --- INVENTORY -------- Improved Antigrav System Improved Antigrav System Combat Antigrav System Experimental Core Analyzer Centrium Light Armor Plating Improved Powered Armor System Shield Micro-nuke Launcher [Rating: 192] Favorites ----------- Power Light Nuclear Core Engine Light Angular Momentum Engine Power Core Light Nuclear Core Reactor Light Antimatter Reactor Propulsion Gravmag Array Leg Improved Carbon-fiber Leg Wheel Compact Wheel Hover Unit Gravmag Array Flight Unit Cesium-ion Thruster Utility System Shield Device Improved Kinecellerator Storage Medium Storage Unit Processor Improved Targeting Computer Hackware System Shield Protection Centrium Light Armor Plating Weapon Advanced Assault Cannon Energy Gun Precision Shock Rifle Energy Cannon Cooled Plasma Cannon Ballistic Gun Helical Railgun Ballistic Cannon Advanced Assault Cannon Launcher Smartbomb Launcher Build | -11 -10 -10 -10 -9 -8 -8 -8 -8 -8 -7 -7 -7 -6 -6 -6 -5 -5 -5 -5 -4 -4 -4 -3 -3 -2 -1 -1 ------- Run | Yrd Mat Min Exi Min Mat Gar Mat Gar Mat Fac Was Fac Fac Gar Fac Fac Upp Upp War Pro Fac Arm Res Tes Res Acc Com Slots Evolved 18 | . . . . . 4 . . . . 2 . . 2 . . 2 . . . . 2 . 2 . 2 2 . Power 1 | . . . . . . . . . . . . . . . . . . . . . . . 1 . . . . Propulsion 4 | . . . . . 2 . . . . 1 . . . . . . . . . . . . 1 . . . . Utility 12 | . . . . . 2 . . . . 1 . . 2 . . 2 . . . . 2 . . . 1 2 . Weapon 1 | . . . . . . . . . . . . . . . . . . . . . . . . . 1 . . Parts Attached 660 | 9 14 1 2 . 14 67 31 13 12 50 1 45 32 9 33 32 10 6 48 6 31 28 25 . 91 38 12 Power 67 | 1 2 . . . 1 4 3 1 1 6 . 4 4 . 3 1 5 1 7 . 2 4 3 . 10 3 1 Engine 18 | 1 1 . . . . . 1 . . 3 . . 2 . 1 1 4 1 3 . . . . . . . . Core 23 | . 1 . . . 1 4 2 1 1 3 . 4 2 . 1 . 1 . 2 . . . . . . . . Reactor 26 | . . . . . . . . . . . . . . . 1 . . . 2 . 2 4 3 . 10 3 1 Propulsion 185 | 4 4 1 . . 9 26 10 3 1 9 1 14 9 . 10 4 . 1 6 1 9 9 10 . 24 10 10 Treads . | . . . . . . . . . . . . . . . . . . . . . . . . . . . . Leg 3 | . . . . . . 2 . . . . . 1 . . . . . . . . . . . . . . . Wheel 10 | 4 2 . . . . . . . . . . . 1 . 3 . . . . . . . . . . . . Hover 90 | . . . . . . . 1 . . 4 . 9 7 . 3 4 . 1 2 1 9 9 3 . 23 10 4 Flight 82 | . 2 1 . . 9 24 9 3 1 5 1 4 1 . 4 . . . 4 . . . 7 . 1 . 6 Utility 211 | 2 3 . 1 . 3 14 6 1 4 21 . 10 11 4 12 12 3 1 8 5 15 7 7 . 43 18 . Device 97 | 1 1 . . . . 4 3 . 1 8 . 6 4 . 3 8 2 1 2 4 9 4 6 . 19 11 . Storage 13 | 1 . . 1 . . . 1 . . 2 . 1 1 . 1 1 . . . . . . . . 4 . . Processor 37 | . 2 . . . . 3 2 . . 4 . . . . 5 2 . . 3 1 4 . . . 9 2 . Hackware 19 | . . . . . 1 . . . . 5 . . . 2 3 1 1 . 1 . 1 . . . 2 2 . Protection 45 | . . . . . 2 7 . 1 3 2 . 3 6 2 . . . . 2 . 1 3 1 . 9 3 . Artifact . | . . . . . . . . . . . . . . . . . . . . . . . . . . . . Weapon 197 | 2 5 . 1 . 1 23 12 8 6 14 . 17 8 5 8 15 2 3 27 . 5 8 5 . 14 7 1 Energy Gun 21 | 1 1 . . . . . 4 . . 3 . 2 1 . 1 2 . . 6 . . . . . . . . Energy Cannon 7 | . . . . . . . . . . . . 1 1 1 . . . 1 1 . . . 2 . . . . Ballistic Gun 40 | 1 4 . 1 . . 14 1 3 . . . . . . 3 . . . 7 . 3 3 . . . . . Ballistic Cannon 86 | . . . . . . 6 4 3 4 5 . 8 3 2 4 11 2 1 10 . 2 4 3 . 9 5 . Launcher 43 | . . . . . 1 3 3 2 2 6 . 6 3 2 . 2 . 1 3 . . 1 . . 5 2 1 Special Weapon . | . . . . . . . . . . . . . . . . . . . . . . . . . . . . Impact Weapon . | . . . . . . . . . . . . . . . . . . . . . . . . . . . . Slashing Weapon . | . . . . . . . . . . . . . . . . . . . . . . . . . . . . Piercing Weapon . | . . . . . . . . . . . . . . . . . . . . . . . . . . . . Special Melee Weapon . | . . . . . . . . . . . . . . . . . . . . . . . . . . . . Unidentified Prototypes 36 | . . . . . . . 2 . . 3 . 3 2 . 2 1 . . 8 . 1 1 2 . 11 . . Corrupted Parts 2 | . . . . . . . . . . . . . 1 . . . . . . . . . . . 1 . . System Corruption 3 | . . . . . . . . . . . . . 1 . . . . . . . . . . . 2 . . Parts Lost 151 | . 3 . . . . 12 6 8 . 5 . 11 4 14 . 1 2 4 4 1 4 28 3 1 1 17 22 Power 13 | . 1 . . . . . . . . . . . . . . . 2 1 . . . 3 . . . 3 3 Propulsion 64 | . . . . . . 5 5 2 . 4 . 8 3 4 . . . 1 2 . 2 10 2 1 . 5 10 Utility 47 | . . . . . . 5 . . . . . 2 1 8 . 1 . . 1 1 2 11 1 . 1 5 8 Weapon 27 | . 2 . . . . 2 1 6 . 1 . 1 . 2 . . . 2 1 . . 4 . . . 4 1 Highest Loss Streak 18 | . 2 . . . . 4 5 6 . 2 . 6 2 12 . 1 1 4 2 1 1 17 2 1 1 13 18 To Critical Strikes . | . . . . . . . . . . . . . . . . . . . . . . . . . . . . Average Slot Usage (%) 86 | . 97 100 100 100 98 93 84 84 94 93 82 76 78 66 80 87 87 86 83 93 98 86 34 53 86 90 47 Engine 1 | . 4 . . . . . 2 . . 3 . . 1 . 2 2 3 5 4 5 . . . . . . . Core 3 | . 9 14 14 14 9 9 5 7 7 2 7 5 3 4 2 2 1 . . . . . . . . . . Reactor 1 | . . . . . . . . . . . . . . . . . . . . . 4 3 3 7 7 6 1 Hover 13 | . . . . . . . 2 . . 14 7 17 24 17 5 16 17 17 15 22 24 21 6 . 21 22 5 Flight 10 | . 7 28 28 28 36 28 23 31 36 20 28 9 1 . 17 . . . . . . . 11 21 1 . 7 Device 7 | . 9 14 14 14 9 . 6 2 6 5 7 5 9 15 6 5 10 11 6 7 5 5 4 14 16 10 2 Storage 5 | . 14 14 14 14 9 9 9 9 9 7 7 5 1 . . 4 5 5 5 5 5 4 . . 3 4 . Processor 16 | . 4 . . . . 11 19 18 12 9 . . . . 20 25 23 23 23 25 33 34 4 4 14 23 17 Hackware 9 | . . . . . 8 5 . . . 14 23 21 13 11 12 14 11 11 11 11 11 4 . . 4 8 12 Protection 2 | . . . . . 7 8 . 6 9 . . . 8 8 . . . . 3 . . 2 . 4 6 5 . Ballistic Gun 3 | . 21 28 28 28 9 10 4 4 . . . . . . 3 . . . 1 11 5 3 . . . . . Ballistic Cannon 5 | . . . . . . 6 8 4 10 3 . 4 4 1 2 10 11 4 2 . 4 3 1 . 4 4 . Naked Turns . | . . . . . . . . . . . . . . . . . . . . . . . . . . . . Heaviest Build 106 | 13 15 14 14 14 24 32 25 23 27 35 11 26 45 39 36 42 43 43 47 39 48 54 36 28 106 85 72 Greatest Support 109 | 32 20 14 14 14 26 36 25 23 27 32 25 40 45 36 48 54 54 54 45 51 56 63 36 30 109 107 76 Greatest Overweight (x) 4 | . 4 . . . . 1 . . 1 2 . 3 . 1 3 . . . 1 . . 4 2 . 2 1 . Average Overweight (x) . | . . . . . . . . . . . . . . . . . . . . . . . . . . . . Largest Inventory Capacity 15 | 8 8 8 8 8 8 8 8 8 8 8 8 8 5 5 10 10 10 10 10 10 10 10 5 5 15 10 10 Average Capacity 8 | 7 8 8 8 8 8 8 8 8 8 8 8 7 5 5 5 9 10 10 10 10 10 9 5 5 9 10 6 Most Carried 10 | 4 8 8 8 8 8 8 8 8 8 8 8 8 5 5 6 10 10 10 10 10 10 10 5 5 10 10 10 Average Carried 8 | 1 5 8 7 7 7 7 7 6 7 7 8 7 4 4 4 9 9 9 9 10 9 9 4 4 8 8 4 Final Capacity 10 | 8 8 8 8 8 8 8 8 8 8 8 8 5 5 5 5 10 10 10 10 10 10 5 5 5 10 10 5 Final Carried 10 | 4 8 8 8 8 8 8 8 4 8 8 8 5 5 5 5 10 10 10 10 10 10 5 4 5 10 10 3 Class Distribution -------------------- 37% | Hacker-Mutant 27% | Scavenger-Mutant 10% | Scavenger-Sprinter 6% | Scavenger-Gunner 5% | Mutant 3% | Hacker-Scout Dominant Class ---------------- Scavenger-Mutant | -10/Materials Scavenger-Mutant | -10/Mines Scavenger-Mutant | -10/Exiles Scavenger-Mutant | -9/Mines Scavenger-Sprinter | -8/Materials Scavenger-Mutant | -8/Garrison Scavenger-Mutant | -8/Materials Scavenger-Sprinter | -8/Garrison Sprinter | -8/Materials Hacker-Mutant | -7/Factory Hacker-Mutant | -7/Waste Hacker-Mutant | -7/Factory Hacker-Mutant | -6/Factory Hacker-Mutant | -6/Garrison Hacker-Sprinter | -6/Factory Hacker-Scout | -5/Factory Hacker-Mutant | -5/Upper Caves Hacker-Mutant | -5/Upper Caves Hacker-Mutant | -5/Warlord Scavenger-Mutant | -4/Proximity Caves Hacker-Mutant | -4/Factory Scavenger-Scout | -4/Armory Mutant | -3/Research Scavenger-Sprinter | -3/Testing Scavenger-Gunner | -2/Research Scavenger-Gunner | -1/Access Hacker-Mutant | -1/Command Resources | -11 -10 -10 -10 -9 -8 -8 -8 -8 -8 -7 -7 -7 -6 -6 -6 -5 -5 -5 -5 -4 -4 -4 -3 -3 -2 -1 -1 ----------- Run | Yrd Mat Min Exi Min Mat Gar Mat Gar Mat Fac Was Fac Fac Gar Fac Fac Upp Upp War Pro Fac Arm Res Tes Res Acc Com Matter Collected 17893 | 400 577 28 . 20 280 2381 1351 163 324 1044 . 783 614 64 570 1424 1197 173 1126 470 1174 499 368 . 2010 791 62 Remotely 580 | . . . . . . . . . . . . . 16 64 . 500 . . . . . . . . . . . Salvage Created 14878 | 254 563 35 . . 405 1139 1192 75 134 990 . 680 959 113 496 1719 776 211 752 401 921 437 224 . 1053 1250 99 Parts 800 | 26 41 3 . . 32 80 65 5 18 60 . 46 52 5 31 79 23 6 24 19 55 15 14 . 29 63 9 Haulers Intercepted 18 | . 2 . . . 1 . 3 . 1 3 . 1 3 . . 2 . . . . . . 1 . . 1 . Recyclers Shooed 19 | . 2 . . . . . 2 . . 1 . 2 1 . . 6 . . . . 2 . 2 . . 1 . Parts Field Recycled . | . . . . . . . . . . . . . . . . . . . . . . . . . . . . Retrieved Matter . | . . . . . . . . . . . . . . . . . . . . . . . . . . . . Parts Self-Destructed 42 | . . . . . . . . . . . . . . . . . 22 3 . 17 . . . . . . . Prevented 8 | . . . . . . . . . . . . . . . . . 8 . . . . . . . . . . Kills | -11 -10 -10 -10 -9 -8 -8 -8 -8 -8 -7 -7 -7 -6 -6 -6 -5 -5 -5 -5 -4 -4 -4 -3 -3 -2 -1 -1 ------- Run | Yrd Mat Min Exi Min Mat Gar Mat Gar Mat Fac Was Fac Fac Gar Fac Fac Upp Upp War Pro Fac Arm Res Tes Res Acc Com Combat Hostiles Destroyed 319 | . 8 2 . . 11 38 25 6 5 11 . 12 12 7 4 32 12 8 22 7 14 11 5 . 24 38 5 Guns 60 | . 8 2 . . 1 16 5 . . 2 . 2 . . 2 . . . 7 7 4 4 . . . . . Cannons 90 | . . . . . . 11 10 2 . 4 . 3 3 . 2 6 12 . 4 . 10 2 5 . 10 6 . AOE 169 | . . . . . 10 11 10 4 5 5 . 7 9 7 . 26 . 8 11 . . 5 . . 14 32 5 Classes Destroyed 26 | 3 6 . . . . 5 1 1 . 1 . . 1 . . . 2 . 1 1 . 1 . . 3 . . Worker 56 | 2 3 . . . 3 . 2 . 1 7 . 10 9 . 3 7 . . . . 6 . 1 . . 2 . Builder 11 | . 1 . . . 2 . . . . . . 1 1 . . . . . . . 3 . . . . 3 . Tunneler 7 | 5 . . . . . . . . . . . . . . . . . . . . . . . . . 2 . Hauler 18 | . 2 . . . 1 . 3 . 1 3 . 1 3 . . 2 . . . . . . 1 . . 1 . Recycler 19 | 1 1 . . . 1 . 4 . . 3 . 1 1 . 2 3 . . . . . . . . . 2 . Minesweeper 1 | . . . . . . . . . . . . . . . . . 1 . . . . . . . . . . Mechanic 3 | . . . . . . . 1 . . . . . . . . . . . . . 1 . . . . 1 . Operator 7 | . 2 . . . . . . . . . . 2 . . . 2 . . . . 1 . . . . . . Drone 3 | . . . . . . . . . . . . . . . . . . . . 2 1 . . . . . . Watcher 24 | . 2 . . . 1 . 2 . 3 2 . 2 1 . 3 4 . . . . 1 . . . 2 1 . Swarmer 120 | . 3 2 . . 4 18 8 4 5 3 . 1 . 4 2 10 6 . 4 . 3 5 5 . 7 21 5 Saboteur 4 | . . . . . . . . . . . . . 1 . . . . . 3 . . . . . . . . Grunt 105 | . 5 . . . 7 13 9 . . 1 . 7 7 3 . 20 3 8 5 4 4 2 . . 3 4 . Brawler 4 | . . . . . . 1 . . . . . . . . . . . . . . 1 . . . 2 . . Duelist 7 | . . . . . . 2 . . . . . 1 1 . . . . . . . . 2 . . . 1 . Protector 2 | . . . . . . . . . . . . . . . . . . . . . . . . . 1 1 . Sentry 25 | . . . . . . 2 8 1 . 2 . . . . . 1 2 . 1 1 3 . . . 4 . . Demolisher 1 | . . . . . . . . . . . . . . . . . . . . . . 1 . . . . . Specialist 3 | . . . . . . 2 . . . . . . . . . . . . 1 . . . . . . . . Hunter 14 | . . . . . . . . . . 1 . . 4 . . 1 . . 3 . . . . . 2 3 . Programmer 30 | . . . . . . . . 1 . 4 . 3 2 . 2 . . . 4 . 2 1 . . 3 8 . Behemoth 2 | . . . . . . 1 . . . . . . . . . . . . 1 . . . . . . . . Striker 2 | . . . . . . . . . . . . . . . . . . . 1 . . . . . 1 . . Executioner 1 | . . . . . . . . . . . . . . . . . . . . . . . . . 1 . . Thug 1 | . . . . . . . . . . . . . . . . . . . . . . . . . . 1 . Marauder 1 | . . . . . . . . . . . . . . . . . . . . . . . . . 1 . . Fireman 1 | . . . . . . . . . . . . . . . . . . . . . . . . . 1 . . Mutant 2 | . . . . . . . . . . . . . . . . . 1 . . . . . . . 1 . . Best Kill Streak 15 | 6 4 2 . . 10 7 6 5 7 4 . 15 6 7 2 8 2 8 7 4 5 5 5 . 6 12 5 Combat Bots Only 8 | . 3 2 . . 4 7 6 5 5 3 . 3 3 7 2 8 2 8 7 4 3 5 5 . 6 8 5 Max Kills in Single Turn 5 | 1 3 1 . . 4 4 3 2 2 2 . 3 4 3 1 5 1 3 5 2 2 5 1 . 3 5 5 Gunslinging 1 | . . . . . . 1 . . . . . . . . . . . . . . . . . . . . . Exploded 5 | . . . . . 4 4 3 2 2 2 . 3 2 3 . 5 . 3 5 . . 5 . . 3 5 5 Melee . | . . . . . . . . . . . . . . . . . . . . . . . . . . . . Uniques/NPCs Destroyed . | . . . . . . . . . . . . . . . . . . . . . . . . . . . . Combat | -11 -10 -10 -10 -9 -8 -8 -8 -8 -8 -7 -7 -7 -6 -6 -6 -5 -5 -5 -5 -4 -4 -4 -3 -3 -2 -1 -1 -------- Run | Yrd Mat Min Exi Min Mat Gar Mat Gar Mat Fac Was Fac Fac Gar Fac Fac Upp Upp War Pro Fac Arm Res Tes Res Acc Com Hostile Shots Fired 2119 | . 30 6 . . 12 188 84 47 13 77 . 194 41 143 5 83 67 30 72 19 138 231 50 14 74 246 255 Missed 905 | . 7 3 . . 7 67 35 19 7 45 . 103 17 32 2 35 31 9 27 13 72 84 18 4 33 107 128 Damage Taken 23997 | . 429 25 . . 80 2031 640 426 56 471 . 1610 909 1726 47 814 618 400 957 123 1281 3007 709 250 1067 3334 2987 Core 5466 | . 152 8 . . . 314 84 110 17 97 . 517 191 635 17 98 74 96 21 . 177 972 218 53 . 368 1247 Absorbed by Shields 648 | . . . . . . 55 . 15 . 4 . . 122 44 . . . . . . . 246 . . 162 . . Redirected to Shielding 120 | . . . . . . 14 6 . . . . . . . . . . . . . . 100 . . . . . Ignored by Resistances 75 | . . . . . . . . . . . . . . . . . 75 . . . . . . . . . . Regen/Repaired (Parts) 839 | . . . . . . . . . . . . 156 . . . . . . 385 . 298 . . . . . . Core Remaining (%) 44 | 100 . . . 36 . . . . 4 . . 12 . . . . . . . 71 . . . 79 100 . . Volleys Fired 1326 | 11 60 2 . . 23 185 92 29 30 74 . 62 60 29 48 106 82 8 76 19 99 44 33 . 83 70 1 Largest 3 | 2 2 2 . . 2 2 2 2 2 2 . 2 2 2 2 2 2 1 2 2 2 2 1 . 3 2 1 Hottest 180 | 60 60 40 . . 53 96 122 81 96 103 . 123 150 106 115 114 114 46 93 76 99 99 110 . 180 140 49 Shots Fired 1926 | 22 112 4 . . 33 300 132 34 37 107 . 74 71 35 49 168 111 8 120 33 177 72 33 . 114 79 1 Gun 725 | 22 112 4 . . 19 182 41 16 . 52 . 34 1 . 24 7 . . 54 33 80 44 . . . . . Cannon 1063 | . . . . . . 109 83 12 27 48 . 35 62 31 25 155 111 . 60 . 97 27 33 . 95 53 . Launcher 138 | . . . . . 14 9 8 6 10 7 . 5 8 4 . 6 . 8 6 . . 1 . . 19 26 1 Special . | . . . . . . . . . . . . . . . . . . . . . . . . . . . . Kinetic 1578 | 11 92 4 . . 19 291 112 28 27 48 . 30 30 15 47 155 111 . 101 33 177 71 28 . 95 53 . Thermal 113 | . 4 . . . . . 12 . . . . 39 33 16 2 7 . . . . . . . . . . . Explosive 138 | . . . . . 14 9 8 6 10 7 . 5 8 4 . 6 . 8 6 . . 1 . . 19 26 1 Electromagnetic 84 | 11 16 . . . . . . . . 52 . . . . . . . . . . . . 5 . . . . Entropic 13 | . . . . . . . . . . . . . . . . . . . 13 . . . . . . . . Robot Hit Streak 22 | 5 9 2 . . 3 10 9 6 4 11 . 7 7 4 7 14 9 . 12 8 13 9 8 . 12 22 . Robot Miss Streak 10 | 2 8 3 . . 3 6 7 2 4 3 . 6 4 3 2 3 10 . 4 3 9 3 3 . 7 2 . Penetration Max 2 | . . . . . . 1 1 . . . . . . . 1 . 1 . 2 1 2 1 . . . . . Secondary Targets 5 | . 1 . . . . 1 . . . . . . . . . . . . . 1 . 2 . . . . . Max Gunslinging Chain 1 | . 1 . . . . 1 . . . . . . . . . . . . . 1 . 1 . . . . . Shots Hit Robots 1032 | 12 58 2 . . 17 147 70 19 11 69 . 50 39 10 30 84 65 . 70 23 88 43 21 . 58 46 . Core Hits 936 | 9 27 2 . . 28 78 54 10 11 41 . 87 68 26 16 88 34 19 46 13 58 22 10 . 70 110 9 Critical Kills 36 | . . . . . . 10 15 2 . . . . . . . . . . 1 3 5 . . . . . . Critical Parts Destroyed 37 | . . . . . . 7 13 4 . . . . . . 2 . . . 3 1 6 1 . . . . . Critical Strikes 142 | 1 1 . . . . 19 30 6 . . . . 2 . 3 8 13 . 10 4 25 6 2 . 5 7 . Burn 1 | . . . . . . . 1 . . . . . . . . . . . . . . . . . . . . Destroy 73 | . . . . . . 17 29 6 . . . . . . 2 . . . 3 4 11 1 . . . . . Blast 64 | . . . . . . 2 . . . . . . 2 . 1 8 13 . 5 . 14 5 2 . 5 7 . Corrupt 2 | 1 1 . . . . . . . . . . . . . . . . . . . . . . . . . . Detonate 2 | . . . . . . . . . . . . . . . . . . . 2 . . . . . . . . Melee Attacks . | . . . . . . . . . . . . . . . . . . . . . . . . . . . . Impact . | . . . . . . . . . . . . . . . . . . . . . . . . . . . . Slashing . | . . . . . . . . . . . . . . . . . . . . . . . . . . . . Piercing . | . . . . . . . . . . . . . . . . . . . . . . . . . . . . Sneak Attacks . | . . . . . . . . . . . . . . . . . . . . . . . . . . . . Combat Hostiles . | . . . . . . . . . . . . . . . . . . . . . . . . . . . . Follow-up Attacks . | . . . . . . . . . . . . . . . . . . . . . . . . . . . . Damage Inflicted 55151 | 181 1109 21 . . 1202 3004 1939 496 678 2124 . 2885 3666 1085 786 6256 2425 1407 5402 788 3158 1800 819 . 5907 7493 520 Guns 9549 | 181 737 21 . . 121 1480 277 92 . 800 . 520 18 . 406 108 . . 1914 788 1188 898 . . . . . Cannons 18018 | . . . . . . 893 861 124 300 701 . 390 942 274 380 2459 2425 . 1197 . 1741 591 818 . 2365 1557 . Explosions 27545 | . 372 . . . 1081 631 801 280 378 623 . 1944 2706 805 . 3689 . 1407 2291 . 228 311 . . 3542 5936 520 Melee . | . . . . . . . . . . . . . . . . . . . . . . . . . . . . Ramming 39 | . . . . . . . . . . . . 31 . 6 . . . . . . 1 . 1 . . . . Kinetic 24490 | 46 570 21 . . 121 2373 1038 216 300 701 . 360 558 182 749 2459 2425 . 2533 788 2929 1489 710 . 2365 1557 . Thermal 5650 | . 395 . . . 49 . 100 . . 149 . 775 1372 92 37 1972 . . 709 . . . . . . . . Explosive 22615 | . . . . . 1032 631 695 280 378 474 . 1719 1723 805 . 1580 . 1407 1582 . . 311 . . 3542 5936 520 Electromagnetic 1779 | 135 144 . . . . . 106 . . 800 . . 13 . . 245 . . . . 228 . 108 . . . . Impact . | . . . . . . . . . . . . . . . . . . . . . . . . . . . . Slashing . | . . . . . . . . . . . . . . . . . . . . . . . . . . . . Piercing . | . . . . . . . . . . . . . . . . . . . . . . . . . . . . Entropic 578 | . . . . . . . . . . . . . . . . . . . 578 . . . . . . . . Highest Corruption 17 | . . . . . . 1 3 8 8 4 13 16 1 1 2 1 . . . . 1 . . . 3 17 15 Average Corruption 4 | . . . . . . 1 2 4 8 2 9 13 1 1 1 1 . . . . 1 . . . 1 7 15 Corruption Purged 8 | . . . . . . . . . . . . . . . 2 1 . . . . . . . . 3 2 . Corruption Blocked 12 | . . . . . . . . . . . . . . . . . . . . . . . . . 12 . . Effects 146 | . . . . . . 9 14 7 19 15 1 46 4 1 2 2 . . . . . . . . . 18 8 Message Errors 31 | . . . . . . 2 3 1 6 3 . 9 1 . . . . . . . . . . . . 5 1 Matter Fused 25 | . . . . . . 1 3 2 4 2 . 7 2 . . . . . . . . . . . . 3 1 Heat Flow Errors 22 | . . . . . . 1 4 2 2 1 1 8 . . . . . . . . . . . . . 2 1 Energy Discharges 17 | . . . . . . 2 2 . . 2 . 6 1 1 1 . . . . . . . . . . 1 1 Parts Rejected 3 | . . . . . . . . . . . . . . . . 1 . . . . . . . . . 2 . Parts Fused 3 | . . . . . . . . . . . . 1 . . 1 . . . . . . . . . . 1 . Data Loss (minor) 21 | . . . . . . 2 . . 4 5 . 7 . . . . . . . . . . . . . 1 2 Data Loss (major) 2 | . . . . . . . . . . 1 . 1 . . . . . . . . . . . . . . . Misfires 6 | . . . . . . 1 . 1 1 1 . 2 . . . . . . . . . . . . . . . Alerts 3 | . . . . . . . . . 1 . . 1 . . . 1 . . . . . . . . . . . Misdirections 5 | . . . . . . . . . . . . 2 . . . . . . . . . . . . . 1 2 Weapon Failures 8 | . . . . . . . 2 1 1 . . 2 . . . . . . . . . . . . . 2 . Overload Shots 9 | . . . . . . . . . . . . . 4 5 . . . . . . . . . . . . . Overflow Damage 1872 | . 148 . . . 28 . 7 49 23 43 . 58 250 12 5 186 164 96 54 . 139 50 40 . 226 294 . Projectiles 610 | . . . . . . . . . 4 28 . 6 1 12 5 31 164 . 3 . 128 50 40 . 95 43 . Explosions 1262 | . 148 . . . 28 . 7 49 19 15 . 52 249 . . 155 . 96 51 . 11 . . . 131 251 . Melee . | . . . . . . . . . . . . . . . . . . . . . . . . . . . . Knockbacks 91 | . . . . . . 2 4 2 1 6 . 2 6 5 3 10 6 . . . 13 8 7 . 8 8 . Impact . | . . . . . . . . . . . . . . . . . . . . . . . . . . . . Kinetic 88 | . . . . . . 2 4 2 1 6 . 2 5 5 3 9 6 . . . 13 8 7 . 7 8 . Secondary 3 | . . . . . . . . . . . . . 1 . . 1 . . . . . . . . 1 . . Self-Inflicted Damage 1196 | . 173 . . . . . 22 58 . 101 . 223 406 3 . . . . . . . . . . 67 143 . Shots 29 | . 2 . . . . . 1 2 . 5 . 6 8 . . . . . . . . . . . 2 3 . Rammed 9 | . . . . . . . . . . . . 4 . 2 . . . . . . 1 . 1 1 . . . Targets Rammed 9 | . . . . . . . . . . . . 4 . 2 . . . . . . 1 . 1 1 . . . Kicked . | . . . . . . . . . . . . . . . . . . . . . . . . . . . . Crushed . | . . . . . . . . . . . . . . . . . . . . . . . . . . . . Highest Temperature 451 | . 43 . . . 76 261 311 148 451 258 135 325 149 37 36 232 207 44 198 12 273 227 313 36 324 256 249 Average Temperature 60 | . 10 . . . 13 60 104 36 105 57 119 66 41 22 11 41 37 14 56 4 40 79 128 18 66 105 43 Received Heat Transfer 2968 | . 126 . . . 45 606 234 27 . 72 . 195 33 20 . 291 126 205 117 30 169 153 69 27 9 198 216 Effects 15 | . . . . . . 1 3 . 5 . . 2 . . . . 2 . . . 1 . . . . 1 . Shutdowns 1 | . . . . . . . . . 1 . . . . . . . . . . . . . . . . . . Energy Bleed 5 | . . . . . . 1 1 . 1 . . 1 . . . . . . . . . . . . . 1 . Interference 9 | . . . . . . . 2 . 3 . . 1 . . . . 2 . . . 1 . . . . . . Siege Activations . | . . . . . . . . . . . . . . . . . . . . . . . . . . . . Robots Corrupted 1 | . . . . . . . . . . . . . . . . . . . . . . . 1 . . . . Combat Hostiles . | . . . . . . . . . . . . . . . . . . . . . . . . . . . . Parts Fried 5 | . . . . . . . . . . 2 . . . . . . . . . . 1 . 1 . 1 . . Impact Corruptions 1 | . . . . . . . . . . . . . . . . . . . . . . . . . 1 . . Robots Melted . | . . . . . . . . . . . . . . . . . . . . . . . . . . . . Combat Hostiles . | . . . . . . . . . . . . . . . . . . . . . . . . . . . . Parts Melted 3 | . 1 . . . . . . . . . . . . . . 2 . . . . . . . . . . . Heat Transferred 5151 | . 300 . . . 50 . 259 . . 200 . 675 1237 130 100 1700 . . 500 . . . . . . . . Parts Sabotaged . | . . . . . . . . . . . . . . . . . . . . . . . . . . . . Parts Stolen . | . . . . . . . . . . . . . . . . . . . . . . . . . . . . Parts Stripped . | . . . . . . . . . . . . . . . . . . . . . . . . . . . . Power Chain Reactions 3 | . . . . . . . . . . 2 . . . . . 1 . . . . . . . . . . . Alert | -11 -10 -10 -10 -9 -8 -8 -8 -8 -8 -7 -7 -7 -6 -6 -6 -5 -5 -5 -5 -4 -4 -4 -3 -3 -2 -1 -1 ------- Run | Yrd Mat Min Exi Min Mat Gar Mat Gar Mat Fac Was Fac Fac Gar Fac Fac Upp Upp War Pro Fac Arm Res Tes Res Acc Com Peak Influence 2545 | 40 457 199 . . 554 2046 1737 1366 1049 812 292 1135 1643 1483 1126 2214 . . . . 936 793 428 1635 1832 2545 1981 Initial 1628 | . 26 134 . . . 362 987 1129 655 417 262 204 555 1150 714 480 . . . . 325 453 297 206 1100 1100 1628 Average 962 | 20 262 169 . . 334 1396 1410 1264 785 614 277 625 852 1316 901 1196 . . . . 459 554 296 1568 1395 1732 1763 Maximum Alert Level 5 | . 2 . . . 2 5 5 4 3 3 1 4 5 4 4 5 . . . . 3 3 2 5 5 5 5 Low Security (%) 3 | 100 34 100 . 100 17 . . . . . . . . . . . . . . . . . . . . . . Level 1 12 | . 53 . . . 52 1 . . . . 100 35 . . . . . . . . 43 . 91 3 . . . Level 2 22 | . 11 . . . 29 3 . . 48 61 . 18 30 . 8 35 . . . . 49 95 8 . . . . Level 3 20 | . . . . . . 10 20 . 51 38 . 37 54 . 86 10 . . . . 7 4 . . 9 . . Level 4 26 | . . . . . . 67 53 100 . . . 8 12 100 5 7 . . . . . . . . 60 44 . Level 5 11 | . . . . . . 16 25 . . . . . 2 . . 26 . . . . . . . . 16 54 100 High Security 3 | . . . . . . . . . . . . . . . . 20 . . . . . . . . 13 . . Max Security . | . . . . . . . . . . . . . . . . . . . . . . . . 96 . . . Squads Dispatched 90 | . 3 . . . 2 . 5 . 4 8 . 13 4 . 6 18 . . . . 7 3 5 . . 9 3 Investigation 19 | . 1 . . . 1 . 2 . . 3 . 2 . . 2 2 . . . . 2 1 2 . . . 1 Extermination 16 | . . . . . . . . . . 4 . 3 . . 2 . . . . . 2 1 1 . . 3 . Reinforcement 35 | . 2 . . . 1 . . . 2 1 . 4 3 . 2 8 . . . . 3 1 2 . . 4 2 Assault 13 | . . . . . . . . . 1 . . 1 1 . . 8 . . . . . . . . . 2 . Garrison 7 | . . . . . . . 3 . 1 . . 3 . . . . . . . . . . . . . . . Intercept . | . . . . . . . . . . . . . . . . . . . . . . . . . . . . Searches Triggered 2 | . . . . . . . . . . . . . . . . . . . . . 2 . . . . . . Construction Impeded 8 | . . . . . 1 . . . 1 . . 1 . . 1 2 . . . . 1 . . . . 1 . Haulers Reinforced 8 | . . . . . . . . . . 1 . 1 2 . . 2 . . . . . . . . . 2 . Active Scanning Responses . | . . . . . . . . . . . . . . . . . . . . . . . . . . . . Cargo Convoy Interrupts 1 | . . . . . . . . . . . . . . . . 1 . . . . . . . . . . . Stealth | -11 -10 -10 -10 -9 -8 -8 -8 -8 -8 -7 -7 -7 -6 -6 -6 -5 -5 -5 -5 -4 -4 -4 -3 -3 -2 -1 -1 --------- Run | Yrd Mat Min Exi Min Mat Gar Mat Gar Mat Fac Was Fac Fac Gar Fac Fac Upp Upp War Pro Fac Arm Res Tes Res Acc Com Distress Signals 34 | . 3 . . . 1 . 5 . 2 . . 3 3 . 2 . . . . . 3 2 . . 3 3 4 Communications Jammed 44 | . . . . . . . . . . . . . . . . 7 . . . . 33 4 . . . . . Distress Signals 43 | . . . . . . . . . . . . . . . . 7 . . . . 32 4 . . . . . Times Spotted 688 | . 18 7 . . 11 40 32 7 19 18 6 37 19 7 15 51 32 9 74 9 55 42 17 9 43 66 45 Peak Tracking Total 20 | . 4 3 . . 4 6 10 4 10 3 6 8 6 5 4 15 11 8 20 4 11 19 6 9 13 15 17 Tactical Retreats 78 | . 2 2 . . 1 2 3 1 2 . . 6 3 1 1 7 8 . 3 2 9 6 2 . 4 7 6 Traps | -11 -10 -10 -10 -9 -8 -8 -8 -8 -8 -7 -7 -7 -6 -6 -6 -5 -5 -5 -5 -4 -4 -4 -3 -3 -2 -1 -1 ------- Run | Yrd Mat Min Exi Min Mat Gar Mat Gar Mat Fac Was Fac Fac Gar Fac Fac Upp Upp War Pro Fac Arm Res Tes Res Acc Com Traps Triggered 30 | . . . . . . 10 2 3 . 5 . . . 3 2 2 . . . . 1 . . . . 2 . Indirectly . | . . . . . . . . . . . . . . . . . . . . . . . . . . . . Trap Hack Attempts . | . . . . . . . . . . . . . . . . . . . . . . . . . . . . Triggered . | . . . . . . . . . . . . . . . . . . . . . . . . . . . . Disarmed 23 | . 6 . . . . . . . . . . . . . 11 . . . . . 6 . . . . . . Reprogrammed . | . . . . . . . . . . . . . . . . . . . . . . . . . . . . Reused 5 | . . . . . . . 1 . . . . 1 . . . . 1 . . . 2 . . . . . . Traps Reconfigurated 56 | . . . . . . 5 2 . . 16 . 5 3 . . . . . . . 15 . 5 . . 5 . Traps Extracted . | . . . . . . . . . . . . . . . . . . . . . . . . . . . . Installed 10 | . . . . . . . . . . . . . . . . . 10 . . . . . . . . . . Triggered 18 | . . . . . . . 1 . . . . 1 . . . 2 1 . 11 . 2 . . . . . . Most Traps Carried 1 | . . . . . . . . . . . . . . . . . 1 . . . . . . . . . . Machines | -11 -10 -10 -10 -9 -8 -8 -8 -8 -8 -7 -7 -7 -6 -6 -6 -5 -5 -5 -5 -4 -4 -4 -3 -3 -2 -1 -1 ---------- Run | Yrd Mat Min Exi Min Mat Gar Mat Gar Mat Fac Was Fac Fac Gar Fac Fac Upp Upp War Pro Fac Arm Res Tes Res Acc Com Machines Disabled 199 | . 8 . . . 9 10 4 1 5 6 . 27 35 3 16 34 9 1 3 . 20 4 1 . 3 . . Max in Single Turn 19 | . 8 . . . 4 1 2 1 2 4 . 15 19 2 1 14 5 1 2 . 4 1 1 . 1 . . Garrison Access 8 | . . . . . . . . . 1 1 . . . . . 2 . . . . 1 . . . 3 . . Garrison Relay 9 | . . . . . . 7 . 1 . . . . . 1 . . . . . . . . . . . . . Phase Generator 1 | . . . . . . . . . . . . . . 1 . . . . . . . . . . . . . Machines Repaired . | . . . . . . . . . . . . . . . . . . . . . . . . . . . . Machines Dismantled . | . . . . . . . . . . . . . . . . . . . . . . . . . . . . Machines Sabotaged . | . . . . . . . . . . . . . . . . . . . . . . . . . . . . Overloaded Fab Kills . | . . . . . . . . . . . . . . . . . . . . . . . . . . . . Hacking | -11 -10 -10 -10 -9 -8 -8 -8 -8 -8 -7 -7 -7 -6 -6 -6 -5 -5 -5 -5 -4 -4 -4 -3 -3 -2 -1 -1 --------- Run | Yrd Mat Min Exi Min Mat Gar Mat Gar Mat Fac Was Fac Fac Gar Fac Fac Upp Upp War Pro Fac Arm Res Tes Res Acc Com Machines Accessed 132 | . 7 . 5 . 5 3 10 . 8 13 . 7 4 . 9 9 3 1 3 . 20 4 7 . 2 10 2 Terminals 74 | . 6 . . . 4 3 6 . 5 7 . 4 2 . 8 2 1 1 . . 10 1 5 . . 7 2 Fabricators 15 | . . . . . . . . . . 1 . 1 1 . 1 4 . . . . 2 2 1 . . 2 . Repair Stations 7 | . 1 . . . . . . . . 1 . 2 . . . . . . . . 2 1 . . . . . Recycling Units 5 | . . . . . . . 1 . . 1 . . . . . . . . . . 2 . . . . 1 . Scanalyzers 10 | . . . . . . . 2 . 2 1 . . . . . 1 . . . . 2 . 1 . 1 . . Garrison Access 11 | . . . . . 1 . 1 . 1 2 . . 1 . . 2 . . . . 2 . . . 1 . . Total Hacks 409 | . 26 . 50 . 9 7 27 . 22 32 . 29 11 . 20 39 8 1 7 . 70 8 13 . 6 19 5 Successful 200 | . 9 . 50 . 3 2 10 . 13 12 . 16 1 . 7 19 8 1 7 . 28 2 2 . 1 9 . Failed 208 | . 16 . . . 6 5 17 . 9 20 . 13 10 . 13 20 . . . . 42 6 11 . 5 10 5 Catastrophic 58 | . 2 . . . 3 2 3 . 2 7 . 5 4 . 5 2 . . . . 9 2 6 . 1 4 1 Database Lockouts 1 | . 1 . . . . . . . . . . . . . . . . . . . . . . . . . . Manual 87 | . 12 . 1 . 3 1 8 . 8 7 . 5 4 . 2 1 . . . . 20 5 3 . . 5 2 Terminals 186 | . 22 . . . 8 7 14 . 12 17 . 12 4 . 16 8 3 1 . . 30 3 10 . . 14 5 Fabricators 43 | . . . . . . . . . . 4 . 3 2 . 4 15 . . . . 7 4 2 . . 2 . Repair Stations 33 | . 4 . . . . . . . . 2 . 14 . . . . . . . . 12 1 . . . . . Recycling Units 15 | . . . . . . . 2 . . 4 . . . . . . . . . . 6 . . . . 3 . Scanalyzers 48 | . . . . . . . 10 . 9 2 . . . . . 11 . . . . 12 . 1 . 3 . . Garrison Access 22 | . . . . . 1 . 1 . 1 3 . . 5 . . 5 . . . . 3 . . . 3 . . Terminal Hacks 117 | . 9 . 50 . 2 2 3 . 5 6 . 3 . . 3 3 8 1 7 . 7 1 2 . . 5 . Record 63 | . . . 49 . . . . . . . . . . . . . 7 1 6 . . . . . . . . Robot Schematic 1 | . . . . . . . . . . 1 . . . . . . . . . . . . . . . . . Robot Analysis 2 | . 1 . . . . . . . . . . 1 . . . . . . . . . . . . . . . Prototype ID Bank 10 | . 2 . . . . . 1 . 1 1 . . . . . . . . . . 4 . 1 . . . . Open Door 7 | . . . . . . 1 . . . . . . . . . . 1 . 1 . . . . . . 4 . Open DSF 1 | . . . . . . . . . . . . . . . . . . . . . . . 1 . . . . Level Access Points 2 | . . . . . 1 . . . 1 . . . . . . . . . . . . . . . . . . Branch Access Points 5 | . 1 . . . . . . . . 1 . . . . . 1 . . . . 1 . . . . 1 . Emergency Access Points 2 | . 1 . . . . 1 . . . . . . . . . . . . . . . . . . . . . Terminal Index 7 | . 1 . . . . . 1 . 1 1 . 1 . . . 1 . . . . . 1 . . . . . Unreport Threat 1 | . . . . . . . . . . . . . . . . . . . . . 1 . . . . . . Locate Traps 1 | . . . . . . . . . . . . . . . . 1 . . . . . . . . . . . Disarm Traps 4 | . 1 . . . . . . . . . . . . . 2 . . . . . 1 . . . . . . Recall Investigation 1 | . . . . . . . . . . 1 . . . . . . . . . . . . . . . . . Recall Reinforcements 1 | . . . . . . . . . 1 . . . . . . . . . . . . . . . . . . Hauler Manifests 1 | . 1 . . . . . . . . . . . . . . . . . . . . . . . . . . Registered Components 1 | . 1 . . . . . . . . . . . . . . . . . . . . . . . . . . Zone Layout 6 | . . . . . 1 . 1 . 1 1 . 1 . . 1 . . . . . . . . . . . . Derelict Proto ID Bank 1 | . . . 1 . . . . . . . . . . . . . . . . . . . . . . . . Fabricator Hacks 14 | . . . . . . . . . . 2 . 3 . . 4 4 . . . . 1 . . . . . . Network Status 2 | . . . . . . . . . . . . 1 . . . . . . . . 1 . . . . . . Load Schematic 7 | . . . . . . . . . . 1 . 1 . . 2 3 . . . . . . . . . . . Build 5 | . . . . . . . . . . 1 . 1 . . 2 1 . . . . . . . . . . . Repair Station Hacks 18 | . . . . . . . . . . . . 10 . . . . . . . . 7 1 . . . . . Scan Component 9 | . . . . . . . . . . . . 5 . . . . . . . . 4 . . . . . . Repair 8 | . . . . . . . . . . . . 5 . . . . . . . . 3 . . . . . . Refit 1 | . . . . . . . . . . . . . . . . . . . . . . 1 . . . . . Recycling Unit Hacks 6 | . . . . . . . . . . 1 . . . . . . . . . . 3 . . . . 2 . Process 2 | . . . . . . . . . . . . . . . . . . . . . 1 . . . . 1 . Retrieve Matter 2 | . . . . . . . . . . . . . . . . . . . . . 1 . . . . 1 . Retrieve Components 2 | . . . . . . . . . . 1 . . . . . . . . . . 1 . . . . . . Scanalyzer 33 | . . . . . . . 6 . 7 2 . . . . . 10 . . . . 8 . . . . . . Insert Component 15 | . . . . . . . 3 . 3 1 . . . . . 5 . . . . 3 . . . . . . Analyze 18 | . . . . . . . 3 . 4 1 . . . . . 5 . . . . 5 . . . . . . Garrison Access Hacks 9 | . . . . . 1 . 1 . 1 1 . . 1 . . 2 . . . . 1 . . . 1 . . Unlock Access 3 | . . . . . 1 . 1 . . . . . 1 . . . . . . . . . . . . . . Seal Access 6 | . . . . . . . . . 1 1 . . . . . 2 . . . . 1 . . . 1 . . Unauthorized Hacks 3 | . . . . . . . . . . . . . . . . . . . . . 1 . . . . 2 . Terminals 2 | . . . . . . . . . . . . . . . . . . . . . . . . . . 2 . Botnet 2 | . . . . . . . . . . . . . . . . . . . . . . . . . . 2 . Fabricators 1 | . . . . . . . . . . . . . . . . . . . . . 1 . . . . . . Fabnet 1 | . . . . . . . . . . . . . . . . . . . . . 1 . . . . . . Repair Stations . | . . . . . . . . . . . . . . . . . . . . . . . . . . . . Recycling Units . | . . . . . . . . . . . . . . . . . . . . . . . . . . . . Scanalyzers . | . . . . . . . . . . . . . . . . . . . . . . . . . . . . Garrison Access . | . . . . . . . . . . . . . . . . . . . . . . . . . . . . Data Cores Recovered 2 | . . . . . . . . . . . . 1 . . . . . . . . 1 . . . . . . Used 1 | . . . . . . . . . . . . . . . . . . . . . 1 . . . . . . Hacking Detections 103 | . 7 . . . 4 2 9 . 5 12 . 6 3 . 8 8 1 . . . 17 4 6 . 1 8 2 Full Trace Events 19 | . 3 . . . 1 1 2 . . 2 . 2 . . 1 2 . . . . 1 1 2 . . . 1 Feedback Events 3 | . . . . . . 1 . . . . . . . . 1 . . . . . . 1 . . . . . Corruption 3 | . . . . . . 1 . . . . . . . . 1 . . . . . . 1 . . . . . Feedback Blocked . | . . . . . . . . . . . . . . . . . . . . . . . . . . . . Robot Schematics Acquired 1 | . . . . . . . . . . 1 . . . . . . . . . . . . . . . . . Robots Built 10 | . . . . . . . . . . 2 . 2 . . 4 2 . . . . . . . . . . . Authchips 2 | . . . . . . . . . . . . . . . 2 . . . . . . . . . . . . Time 423 | . . . . . . . . . . 134 . 134 . . 88 67 . . . . . . . . . . . Total Robot Build Rating 40 | . . . . . . . . . . 8 . 8 . . 16 8 . . . . . . . . . . . Part Schematics Acquired 14 | . . . . . . . 3 . 3 . . . . . . 5 . . . . 3 . . . . . . Parts Built . | . . . . . . . . . . . . . . . . . . . . . . . . . . . . Authchips . | . . . . . . . . . . . . . . . . . . . . . . . . . . . . Time . | . . . . . . . . . . . . . . . . . . . . . . . . . . . . Total Part Build Rating . | . . . . . . . . . . . . . . . . . . . . . . . . . . . . Parts Repaired 8 | . . . . . . . . . . . . 5 . . . . . . . . 3 . . . . . . Time 358 | . . . . . . . . . . . . 191 . . . . . . . . 167 . . . . . . Parts Recycled . | . . . . . . . . . . . . . . . . . . . . . . . . . . . . Recycled Matter 642 | . . . . . . . . . . . . . . . . . . . . . 287 . . . . 355 . Retrieved Matter 642 | . . . . . . . . . . . . . . . . . . . . . 287 . . . . 355 . Retrieved Components 10 | . . . . . . . . . . 10 . . . . . . . . . . . . . . . . . Parts Scanalyzed 15 | . . . . . . . 3 . 3 1 . . . . . 5 . . . . 3 . . . . . . Part Schematics Acquired 14 | . . . . . . . 3 . 3 . . . . . . 5 . . . . 3 . . . . . . Parts Damaged 2 | . . . . . . . . . 2 . . . . . . . . . . . . . . . . . . Bothacking | -11 -10 -10 -10 -9 -8 -8 -8 -8 -8 -7 -7 -7 -6 -6 -6 -5 -5 -5 -5 -4 -4 -4 -3 -3 -2 -1 -1 ------------ Run | Yrd Mat Min Exi Min Mat Gar Mat Gar Mat Fac Was Fac Fac Gar Fac Fac Upp Upp War Pro Fac Arm Res Tes Res Acc Com Used RIF Installer . | . . . . . . . . . . . . . . . . . . . . . . . . . . . . Robots Hacked 2 | . . . . . . . . . . . . . . . . . . . . . . . . . 2 . . Non-combat . | . . . . . . . . . . . . . . . . . . . . . . . . . . . . Combat 2 | . . . . . . . . . . . . . . . . . . . . . . . . . 2 . . Robot Hacks Applied . | . . . . . . . . . . . . . . . . . . . . . . . . . . . . Relay Couplers Released 33 | . . . . . . 23 . 5 . . . . . 4 . . . . . . . . . . 1 . . Machine Destruction 33 | . . . . . . 23 . 5 . . . . . 4 . . . . . . . . . . 1 . . Fabnet Peak Effective % 3 | . . . . . . . . . . . . . . . . . . . . . . . 3 3 1 . . Autooverrided 2 | . . . . . . . . . . . . . . . . . . . . . . . . . 2 . . Robots Rewired 20 | . . . . . . 9 . . . . . . 2 . . . . . 5 . . 4 . . . . . Allies Hacked 5 | . . . . . . . . . . 1 . 1 2 . 1 . . . . . . . . . . . . Hacks Repelled 1 | . . . . . . . . . . . . . . . . . . . 1 . . . . . . . . Allies | -11 -10 -10 -10 -9 -8 -8 -8 -8 -8 -7 -7 -7 -6 -6 -6 -5 -5 -5 -5 -4 -4 -4 -3 -3 -2 -1 -1 -------- Run | Yrd Mat Min Exi Min Mat Gar Mat Gar Mat Fac Was Fac Fac Gar Fac Fac Upp Upp War Pro Fac Arm Res Tes Res Acc Com Total Allies 42 | . . 3 . . . 11 . . . 3 . 3 4 . 5 2 . . 5 . . 4 . . 2 . . Largest Group 5 | . . 3 . . . 3 . . . 3 . 3 3 . 4 2 . . 5 . . 4 . . 1 . . Highest-Rated Group 258 | . . 40 . . . 51 . . . 90 . 90 103 . 111 74 . . 258 . . 251 . . 67 . . Highest-Rated Ally 68 | . . 16 . . . 31 . . . 37 . 37 37 . 37 37 . . 68 . . 65 . . 67 . . Total Orders 40 | . . . . . . 3 . . . . . 2 . . 4 2 . 4 3 . . 2 . . 12 8 . STAY 7 | . . . . . . 2 . . . . . 1 . . 2 . . . 1 . . 1 . . . . . FOLLOW 5 | . . . . . . 1 . . . . . 1 . . 2 . . . 1 . . . . . . . . AID 1 | . . . . . . . . . . . . . . . . . . . . . . 1 . . . . . EXPLORE 25 | . . . . . . . . . . . . . . . . 2 . 4 1 . . . . . 12 6 . RETURN 2 | . . . . . . . . . . . . . . . . . . . . . . . . . . 2 . Ally Attacks 192 | . . 2 . . . 46 . . . 18 . 16 11 . 48 13 . . 18 . . 15 . . 5 . . Total Damage 5323 | . . . . . . 772 . . . 576 . 298 128 . 934 455 . . 681 . . 477 . . 1002 . . Kills 46 | . . . . . . 9 . . . 7 . 5 . . 8 4 . . 4 . . 4 . . 5 . . Allies Corrupted 1 | . . . . . . . . . . . . . . . . . . . . . . . . . 1 . . Allies Melted 2 | . . . . . . . . . . . . . . . . . 1 . . . . . . . 1 . . Intel | -11 -10 -10 -10 -9 -8 -8 -8 -8 -8 -7 -7 -7 -6 -6 -6 -5 -5 -5 -5 -4 -4 -4 -3 -3 -2 -1 -1 ------- Run | Yrd Mat Min Exi Min Mat Gar Mat Gar Mat Fac Was Fac Fac Gar Fac Fac Upp Upp War Pro Fac Arm Res Tes Res Acc Com Robot Analysis Total 2 | . 1 . . . . . . . . . . 1 . . . . . . . . . . . . . . . Derelict Logs Recovered 7 | . . 1 . 1 . . . . . . . . . . . . 1 2 . 2 . . . . . . . Drone Launches 39 | . . . . . . . . . . . . . . . . 2 . 6 1 . . . . . 19 11 . Drone Recoveries 25 | . . . . . . . . . . . . . . . . . . 4 . . . . . . 13 8 . Decoded 0b10 Intel 117 | . . . . . . . . . . . . . . . . . . . . . 78 39 . . . . . Traps 6 | . . . . . . . . . . . . . . . . . . . . . 4 2 . . . . . Emergency Access 6 | . . . . . . . . . . . . . . . . . . . . . 3 3 . . . . . Items 37 | . . . . . . . . . . . . . . . . . . . . . 27 10 . . . . . Machines 2 | . . . . . . . . . . . . . . . . . . . . . . 2 . . . . . Garrisons 1 | . . . . . . . . . . . . . . . . . . . . . 1 . . . . . . Patrols 26 | . . . . . . . . . . . . . . . . . . . . . 19 7 . . . . . Investigations 4 | . . . . . . . . . . . . . . . . . . . . . 3 1 . . . . . Reinforcements 2 | . . . . . . . . . . . . . . . . . . . . . 2 . . . . . . Guards 32 | . . . . . . . . . . . . . . . . . . . . . 18 14 . . . . . Exits 1 | . . . . . . . . . . . . . . . . . . . . . 1 . . . . . . Exploration | -11 -10 -10 -10 -9 -8 -8 -8 -8 -8 -7 -7 -7 -6 -6 -6 -5 -5 -5 -5 -4 -4 -4 -3 -3 -2 -1 -1 ------------- Run | Yrd Mat Min Exi Min Mat Gar Mat Gar Mat Fac Was Fac Fac Gar Fac Fac Upp Upp War Pro Fac Arm Res Tes Res Acc Com Turns Passed 19395 | 136 497 84 165 90 264 2081 771 294 447 1472 40 957 619 233 1096 1225 1541 364 954 521 1443 671 585 33 1890 750 172 Spaces Moved 25694 | 93 479 194 430 236 412 2639 1146 291 640 2140 109 1006 786 215 1536 1483 1902 357 945 815 1655 627 802 112 3140 1114 390 Core 647 | 2 5 . . . . . . . . . . 201 . 71 89 . . . . . . 82 193 . . . 4 Treads . | . . . . . . . . . . . . . . . . . . . . . . . . . . . . Legs 301 | . . . . . . 230 . . . . . 4 67 . . . . . . . . . . . . . . Wheels 429 | 91 224 . . . . . . . . . . . 14 . 100 . . . . . . . . . . . . Hover 14313 | . . . . . . . . . . 921 . 750 705 144 28 1458 1902 357 944 815 1655 545 20 . 2895 1114 60 Flight 10004 | . 250 194 430 236 412 2409 1146 291 640 1219 109 51 . . 1319 25 . . 1 . . . 589 112 245 . 326 Fastest Speed 25 | 50 37 37 37 37 26 26 32 31 29 27 35 35 42 45 29 29 58 58 58 53 44 40 25 28 28 38 34 Average Speed 46 | 91 59 37 37 37 28 38 34 32 33 50 35 49 52 47 37 56 58 58 61 53 48 58 37 28 45 45 38 Slowest Speed 250 | 100 250 37 37 37 31 190 39 34 104 180 37 200 120 108 245 60 58 58 126 58 53 250 150 31 180 135 67 Overloaded Moves . | . . . . . . . . . . . . . . . . . . . . . . . . . . . . Propulsion Burnouts . | . . . . . . . . . . . . . . . . . . . . . . . . . . . . Robots Hopped 77 | . 1 3 . 4 . 2 12 . 10 9 1 . . . 7 . . . . . . . 4 5 . . 19 Cave-ins Triggered . | . . . . . . . . . . . . . . . . . . . . . . . . . . . . Exploration Rate (%) 52 | 4 85 48 90 69 31 95 50 35 51 29 89 27 20 49 37 44 92 98 92 78 49 40 18 22 80 36 23 Regions Visited 27 Branch Regions 10 Pre-discovered Areas 6 | . . 1 1 1 . . . . . . . . . . . . 2 . . 1 . . . . . . . Known Exits Taken 12 | . 1 . . . 1 . 1 . 1 . . . 1 . 1 1 1 . . 1 1 1 . . . 1 . Unknown Exits Taken 10 | 1 . 1 1 1 . . . . . . . 1 . . . . . 1 1 . . . 1 1 1 . . Scrap Searched 14 | . . 1 . 2 . . . . . . . . . . . . 2 5 . 4 . . . . . . . Spaces Dug 105 | . . . . . . 12 . . 2 5 . 5 10 1 7 29 . . . . 22 4 1 . 2 5 . Terrain Destroyed 2121 | . 36 . . . 51 72 91 53 82 156 . 178 279 99 11 157 57 48 51 17 104 36 7 . 290 232 14 Melee . | . . . . . . . . . . . . . . . . . . . . . . . . . . . . Projectile 332 | . . . . . . 2 1 . 10 12 . 7 16 3 11 40 45 . 10 17 82 27 7 . 28 14 . AOE 1789 | . 36 . . . 51 70 90 53 72 144 . 171 263 96 . 117 12 48 41 . 22 9 . . 262 218 14 Terrain Rammed . | . . . . . . . . . . . . . . . . . . . . . . . . . . . . Walls Destroyed . | . . . . . . . . . . . . . . . . . . . . . . . . . . . . Machines Disabled . | . . . . . . . . . . . . . . . . . . . . . . . . . . . . Actions | -11 -10 -10 -10 -9 -8 -8 -8 -8 -8 -7 -7 -7 -6 -6 -6 -5 -5 -5 -5 -4 -4 -4 -3 -3 -2 -1 -1 --------- Run | Yrd Mat Min Exi Min Mat Gar Mat Gar Mat Fac Was Fac Fac Gar Fac Fac Upp Upp War Pro Fac Arm Res Tes Res Acc Com Total 31129 | 118 586 198 436 235 532 3413 1380 458 827 2420 108 1376 912 308 1988 1709 2233 504 1217 868 2115 863 1050 108 3497 1275 395 Wait 2321 | . 7 5 . . 62 217 96 70 133 37 . 221 5 18 343 29 203 130 45 22 297 124 170 . 58 29 . Move 25523 | 92 476 187 429 228 412 2634 1122 290 619 2123 106 1005 785 214 1521 1482 1901 356 944 814 1654 626 794 103 3139 1113 354 Hop 70 | . 1 3 . 3 . 2 11 . 10 8 1 . . . 7 . . . . . . . 3 4 . . 17 Pick Up 257 | 4 12 . 2 2 10 22 8 . 10 25 . 12 6 3 3 26 12 2 18 1 15 9 8 . 29 13 5 Fast Attach 283 | 7 6 . . . 1 14 9 4 5 18 1 22 14 2 22 12 2 2 30 6 8 7 17 . 53 18 3 Attach 147 | . 4 . . . 3 9 7 8 2 6 . 2 7 6 5 9 1 4 15 . 5 12 6 . 13 14 9 Detach 112 | . 5 . . . . 3 8 4 3 4 . 3 4 5 7 5 1 2 17 2 3 5 3 1 20 3 4 Swap 230 | 2 4 1 2 . 10 44 15 1 5 26 . 21 11 1 6 11 7 . 3 . 18 9 2 . 25 6 . Drop 392 | 2 11 . 3 2 11 36 12 1 10 34 . 23 11 2 13 29 13 . 50 4 15 13 13 . 73 9 2 Fire 1326 | 11 60 2 . . 23 185 92 29 30 74 . 62 60 29 48 106 82 8 76 19 99 44 33 . 83 70 1 Melee . | . . . . . . . . . . . . . . . . . . . . . . . . . . . . Ram 8 | . . . . . . . . . . . . 4 . 2 . . . . . . 1 . 1 . . . . Kick . | . . . . . . . . . . . . . . . . . . . . . . . . . . . . Crush . | . . . . . . . . . . . . . . . . . . . . . . . . . . . . Escape Stasis 288 | . . . . . . 134 . 51 . 64 . . . 26 13 . . . . . . . . . . . . Rewire 160 | . . . . . . 113 . . . 1 . 1 9 . . . 1 . 19 . . 14 . . 2 . . Trap 10 | . . . . . . . . . . . . . . . . . 10 . . . . . . . . . . Miscellaneous 2 | . . . . . . . . . . . . . . . . . . . . . . . . . 2 . . Route ------- -11/Scrapyard -10/Materials (discovered 3 exits: [*Mat] / *Min x2) -10/Mines (discovered 2 exits: [*Mat] / *Exi) -10/Exiles -9/Mines (discovered 2 exits: *Mat x2) -8/Materials (discovered 4 exits: Fac x3 / Gar) -8/Garrison (discovered 4 exits: *Mat x4) -8/Materials (discovered 2 exits: *Fac / Gar) -8/Garrison -8/Materials (discovered 3 exits: *Fac x3) -7/Factory (discovered 2 exits: *Low x2) -7/Waste -7/Factory -6/Factory (discovered 2 exits: [*Low] / Gar) -6/Garrison -6/Factory -5/Factory (discovered 4 exits: *Upp x2 / *Ext x2) -5/Upper Caves -5/Upper Caves (discovered 2 exits: *Fac / *War) -5/Warlord -4/Proximity Caves -4/Factory (discovered 7 exits: *Res x4 / *Upp x2 / *Arm) -4/Armory -3/Research -3/Testing -2/Research (discovered 2 exits: *Acc / [*Qua]) -1/Access -1/Command History --------- Turn | Location | Event 7 | -11/Scrapyard | Discovered new exit (range 15) 137 | -11/Scrapyard | Entered Materials 137 | -10/Materials | Discovered new exit (range 14) 213 | -10/Materials | Identified exit to Mines 248 | -10/Materials | Central database locked down 341 | -10/Materials | Build established: Scavenger-Mutant 479 | -10/Materials | Core integrity fell below 50% 610 | -10/Materials | Discovered new exit (range 15) 634 | -10/Materials | Entered Mines 657 | -10/Mines | Assisted by bots powering up and referring to "LRC-V3" 669 | -10/Mines | Discovered new exit (range 2) 677 | -10/Mines | Assembled infested the area 717 | -10/Mines | Deemed a non-threat by the Exiles lab entrance 717 | -10/Mines | Discovered new exit (range 5) 718 | -10/Mines | Entered Exiles 727 | -10/Exiles | Met 8R-AWN 734 | -10/Exiles | Met EX-HEX 744 | -10/Exiles | Met EX-BIN 749 | -10/Exiles | Aligned with FarCom system 750 | -10/Exiles | Given EX-Vault access code 765 | -10/Exiles | Opened EX-Vault 771 | -10/Exiles | Found Trap Reconfigurator 779 | -10/Exiles | Warned to stay clear of 0b10 Research branches 790 | -10/Exiles | Met EX-DEC 791 | -10/Exiles | Learned location of Zion (-7) 807 | -10/Exiles | Visited The Gauntlet 879 | -10/Exiles | Discovered new exit (range 12) 883 | -10/Exiles | Left Exiles lab with Trap Reconfigurator 883 | -10/Exiles | Entered Mines 905 | -9/Mines | Learned location of Storage (-9) 957 | -9/Mines | Discovered new exit (range 13) 963 | -9/Mines | Received a Rocket Launcher from a helpful Derelict 969 | -9/Mines | Discovered new exit (range 6) 973 | -9/Mines | Entered Materials 973 | -8/Materials | Evolved 4 slots: Propulsion x2, Utility x2 1093 | -8/Materials | Identified exit to Factory 1237 | -8/Materials | Identified exit to Garrison 1237 | -8/Materials | Entered Garrison 1261 | -8/Garrison | Build established: Scavenger-Sprinter 1263 | -8/Garrison | Triggered checkpoint 1272 | -8/Garrison | Triggered checkpoint 1336 | -8/Garrison | Rescued a captive Derelict 1336 | -8/Garrison | Rescued a captive Derelict 1343 | -8/Garrison | Destroyed 7 combat bots 1363 | -8/Garrison | Garrison Relay disabled 1380 | -8/Garrison | Triggered checkpoint 1427 | -8/Garrison | Garrison Relay disabled 1428 | -8/Garrison | Triggered checkpoint 1500 | -8/Garrison | Triggered checkpoint 1570 | -8/Garrison | Garrison Relay disabled 1715 | -8/Garrison | Discovered new exit (range 12) 1732 | -8/Garrison | Triggered checkpoint 1744 | -8/Garrison | Garrison Relay disabled 1861 | -8/Garrison | Triggered checkpoint 1901 | -8/Garrison | Lost 3 allies 1924 | -8/Garrison | Triggered checkpoint 1973 | -8/Garrison | Garrison Relay disabled 1978 | -8/Garrison | Discovered new exit (range 6) 1987 | -8/Garrison | Discovered new exit (range 14) 2105 | -8/Garrison | Spotted B-75 Beast 2444 | -8/Garrison | Build established: Scavenger-Mutant 2484 | -8/Garrison | Lost 4 parts (2n2u) 2518 | -8/Garrison | Core integrity fell below 50% 2537 | -8/Garrison | Destroyed B-75 Beast 2559 | -8/Garrison | Lost 4 parts (1n2u1w) 2836 | -8/Garrison | Triggered checkpoint 3054 | -8/Garrison | Garrison Relay disabled 3078 | -8/Garrison | Triggered checkpoint 3084 | -8/Garrison | Garrison Relay disabled 3184 | -8/Garrison | Triggered checkpoint 3206 | -8/Garrison | Triggered checkpoint 3241 | -8/Garrison | Discovered new exit (range 15) 3318 | -8/Garrison | Entered Materials 3337 | -8/Materials | Identified exit to Garrison 3477 | -8/Materials | Discovered exit to Factory (range 16) 3581 | -8/Materials | Lost 5 parts (4n1w) 3586 | -8/Materials | Garrison activated, responded to threat 4089 | -8/Materials | Entered Garrison 4226 | -8/Garrison | Triggered checkpoint 4300 | -8/Garrison | Lost 6 parts (2n4w) 4305 | -8/Garrison | Core integrity fell below 20% 4381 | -8/Garrison | Discovered new exit (range 8) 4383 | -8/Garrison | Entered Materials 4680 | -8/Materials | Garrison activated, responded to threat 4783 | -8/Materials | First assault squad dispatched 4830 | -8/Materials | Entered Factory 4830 | -7/Factory | Evolved 2 slots: Propulsion x1, Utility x1 4913 | -7/Factory | Discovered new exit (range 7) 5011 | -7/Factory | Found Prototype Launcher 5011 | -7/Factory | Identified Rocket Array 5016 | -7/Factory | Found Rocket Array 5168 | -7/Factory | Identified exit to Lower Caves 5567 | -7/Factory | Fabricated P-60 Hacker? 5574 | -7/Factory | Hacker 4b assimilated hostile G-47 Trooper 5734 | -7/Factory | Found Rocket Array 5736 | -7/Factory | Found Rocket Array 5826 | -7/Factory | Build established: Hacker-Mutant 6302 | -7/Factory | Sucked down chute 6302 | -7/Factory | Entered Waste 6307 | -7/Waste | Spotted C-40 Crusher 6308 | -7/Waste | Spotted C-40 Crusher 6308 | -7/Waste | Spotted C-40 Crusher 6313 | -7/Waste | Spotted C-40 Crusher 6317 | -7/Waste | EMP discharged 6317 | -7/Waste | System corruption reached 10% 6328 | -7/Waste | Spotted C-40 Crusher 6334 | -7/Waste | Spotted C-40 Crusher 6339 | -7/Waste | Discovered new exit (range 10) 6342 | -7/Waste | Entered Factory 6434 | -7/Factory | Repaired Field Propulsion Drive 6467 | -7/Factory | Repaired Imp. Hover Unit 6520 | -7/Factory | Repaired Imp. Flight Unit 6547 | -7/Factory | Repaired Sml. Storage Unit 6580 | -7/Factory | Repaired Flight Unit 6846 | -7/Factory | Garrison activated, responded to threat 7079 | -7/Factory | Core integrity fell below 50% 7104 | -7/Factory | Lost 6 parts (5n1w) 7142 | -7/Factory | First assault squad dispatched 7159 | -7/Factory | Core integrity fell below 20% 7189 | -7/Factory | Fabricated P-60 Hacker? 7191 | -7/Factory | Hacker 4d assimilated hostile G-47 Trooper 7284 | -7/Factory | Discovered new exit (range 15) 7299 | -7/Factory | Entered another Factory area 7299 | -6/Factory | Accompanied by 2 allies 7299 | -6/Factory | Evolved 2 slots: Utility x2 7458 | -6/Factory | Hacker 4d assimilated hostile G-50 Soldier 7485 | -6/Factory | Hacker 4d assimilated hostile G-50 Soldier 7649 | -6/Factory | First assault squad dispatched 7690 | -6/Factory | Discovered new exit (range 8) 7890 | -6/Factory | Identified exit to Garrison 7918 | -6/Factory | Entered Garrison 7955 | -6/Garrison | Garrison Relay disabled 7991 | -6/Garrison | Phase Generator disabled 8038 | -6/Garrison | Triggered checkpoint 8038 | -6/Garrison | Triggered checkpoint 8065 | -6/Garrison | Destroyed 7 combat bots 8100 | -6/Garrison | Core integrity fell below 50% 8128 | -6/Garrison | Lost 12 parts (4n6u2w) 8132 | -6/Garrison | Discovered new exit (range 8) 8141 | -6/Garrison | Core integrity fell below 20% 8151 | -6/Garrison | Entered Factory 8482 | -6/Factory | Fabricated P-60 Hacker? 8575 | -6/Factory | Fabricated P-60 Hacker? 8680 | -6/Factory | Spotted B-75 Beast 8957 | -6/Factory | Discovered new exit (range 22) 9216 | -6/Factory | Build established: Hacker-Sprinter 9246 | -6/Factory | Identified exit to Factory 9247 | -6/Factory | Entered another Factory area 9247 | -5/Factory | Evolved 2 slots: Utility x2 9554 | -5/Factory | Build established: Hacker-Mutant 9611 | -5/Factory | Spotted B-75 Beast 9827 | -5/Factory | Fabricated P-60 Hacker? 9880 | -5/Factory | Build established: Hacker-Scout 10206 | -5/Factory | Cargo convoy interrupted 10218 | -5/Factory | High security lockdown imminent 10245 | -5/Factory | Identified exit to Upper Caves 10245 | -5/Factory | Identified exit to Extension 10298 | -5/Factory | High security lockdown engaged 10466 | -5/Factory | Destroyed 8 combat bots 10472 | -5/Factory | Entered Upper Caves 10514 | -5/Upper Caves | Met a Warlord Commander 10515 | -5/Upper Caves | Learned location of Warlord (-5) 10516 | -5/Upper Caves | Warlord Commander delivered Encrypted Comm Array 10524 | -5/Upper Caves | Found Encrypted Comm Array 10569 | -5/Upper Caves | Build established: Hacker-Mutant 10630 | -5/Upper Caves | Learned location of Armory (-4) 10630 | -5/Upper Caves | Learned 8 Factory zone layouts 10630 | -5/Upper Caves | Learned Research stockpile data 11111 | -5/Upper Caves | Attracted the attention of an 0b10 base 11228 | -5/Upper Caves | Learned location of 1 exit from Proximity Caves 11228 | -5/Upper Caves | Learned 6 Lower Caves zone layouts 11376 | -5/Upper Caves | Attacked by a delusional Derelict stockpiling parts 11729 | -5/Upper Caves | Identified exit to Upper Caves 12013 | -5/Upper Caves | Entered another Upper Caves area 12014 | -5/Upper Caves | Identified exit to Factory 12061 | -5/Upper Caves | Lost 4 parts (1p1n2w) 12061 | -5/Upper Caves | Learned Factory terminal intel 12071 | -5/Upper Caves | Destroyed 8 combat bots 12306 | -5/Upper Caves | Discovered new exit (range 53) 12319 | -5/Upper Caves | Learned 4 Factory zone layouts 12333 | -5/Upper Caves | Spotted B-75 Beast 12377 | -5/Upper Caves | Entered Warlord 12523 | -5/Warlord | Visited the Vortex Lab 12531 | -5/Warlord | Found Prototype Energy Gun 12531 | -5/Warlord | Identified Vortex Rail 12540 | -5/Warlord | Found Vortex Rail 12543 | -5/Warlord | Warlord's base attacked by MAIN.C 12543 | -5/Warlord | Discovered new exit (range 80) 12610 | -5/Warlord | Met Warlord 12717 | -5/Warlord | Destroyed 7 combat bots 12815 | -5/Warlord | Spotted B-86 Titan 12841 | -5/Warlord | Warlord forces counterattacked 12848 | -5/Warlord | Found Prototype Ballistic Cannon 12848 | -5/Warlord | Identified Hvy. Autocannon 12864 | -5/Warlord | Spotted Executioner 12865 | -5/Warlord | Spotted Striker 12865 | -5/Warlord | Spotted Striker 12870 | -5/Warlord | P-80 Master assimilated allied TO-DUJ(g) 12889 | -5/Warlord | Destroyed Striker 12899 | -5/Warlord | Spotted Executioner 12942 | -5/Warlord | Lost 12 allies 12973 | -5/Warlord | Found Prototype Device 12973 | -5/Warlord | Identified Adv. Kinecellerator 12991 | -5/Warlord | Spotted Striker 12998 | -5/Warlord | Spotted Executioner 13001 | -5/Warlord | Spotted Striker 13006 | -5/Warlord | Allies destroyed Striker 13007 | -5/Warlord | Allies destroyed Striker 13046 | -5/Warlord | Lost 16 allies 13069 | -5/Warlord | Spotted B-86 Titan 13071 | -5/Warlord | Spotted Executioner 13102 | -5/Warlord | Spotted B-75 Beast 13124 | -5/Warlord | Destroyed B-86 Titan 13215 | -5/Warlord | Build established: Scavenger-Mutant 13218 | -5/Warlord | Warlord base infiltrated, sounded retreat 13260 | -5/Warlord | Spotted Executioner 13262 | -5/Warlord | Lost 4 allies 13308 | -5/Warlord | Found Prototype Processor 13308 | -5/Warlord | Identified Exp. Core Analyzer 13331 | -5/Warlord | Entered Proximity Caves 13333 | -4/Proximity Caves | Spotter reported a threat 13334 | -4/Proximity Caves | Spotter reported a threat 13591 | -4/Proximity Caves | Learned Research security intel 13692 | -4/Proximity Caves | Attracted the attention of an 0b10 checkpoint 13852 | -4/Proximity Caves | Entered Factory 13852 | -4/Factory | Evolved 2 slots: Utility x2 13853 | -4/Factory | Identified exit to Research 13854 | -4/Factory | Loaded intel: 26 terminal locations 14057 | -4/Factory | Spotted B-86 Titan 14091 | -4/Factory | Discovered new exit (range 5) 14101 | -4/Factory | Identified exit to Upper Caves 14101 | -4/Factory | Identified exit to Armory 14102 | -4/Factory | Search patrols dispatched 14185 | -4/Factory | Repaired Imp. Linear Gravjet 14215 | -4/Factory | Repaired Cmb. Gravmag System 14312 | -4/Factory | Build established: Hacker-Mutant 14602 | -4/Factory | Search patrols dispatched 14666 | -4/Factory | Repaired Helical Railgun 15255 | -4/Factory | Discovered exit to Research (range 4) 15295 | -4/Factory | Entered Armory 15317 | -4/Armory | Found Adv. Force Booster 15412 | -4/Armory | Lost 3 parts (1p2n) 15479 | -4/Armory | Lost 4 allies 15496 | -4/Armory | Lost 3 parts (1p1n1w) 15663 | -4/Armory | Spotted B-86 Titan 15737 | -4/Armory | Lost 5 parts (1p2u2w) 15914 | -4/Armory | Core integrity fell below 50% 15943 | -4/Armory | Core integrity fell below 20% 15965 | -4/Armory | Discovered exit to Research (range 3) 15966 | -4/Armory | Entered Research 15966 | -3/Research | Evolved 2 slots: Power x1, Propulsion x1 15975 | -3/Research | Found Prototype Device 15975 | -3/Research | Identified Exp. EM Disruption Field 15993 | -3/Research | Identified exit to DSF 15996 | -3/Research | Lost 17 parts (7n9u1w) 16207 | -3/Research | Build established: Mutant 16538 | -3/Research | Discovered new exit (range 13) 16551 | -3/Research | Entered Testing 16552 | -3/Testing | Maximum security lockdown engaged 16580 | -3/Testing | Discovered new exit (range 15) 16584 | -3/Testing | Entered Research 16584 | -2/Research | Warlord forces began assault on 0b10 16584 | -2/Research | Evolved 2 slots: Utility x1, Weapon x1 16609 | -2/Research | Distinguished unit "Shockpunchers" dispatched to help 16622 | -2/Research | Spotted B-90 Cyclops 16694 | -2/Research | Research machine network offline 16802 | -2/Research | Lost 4 allies 16982 | -2/Research | Met up with Warlord 17074 | -2/Research | Discovered new exit (range 28) 17074 | -2/Research | Borebot progress halted 17159 | -2/Research | Spotted Striker 17225 | -2/Research | Spotted Striker 17240 | -2/Research | Spotted Executioner 17338 | -2/Research | Lost 3 allies 17399 | -2/Research | Borebot progress halted 17418 | -2/Research | Spotted Striker 17420 | -2/Research | Found Prototype Processor 17420 | -2/Research | Identified Exp. Targeting Computer 17456 | -2/Research | Destroyed Executioner 17484 | -2/Research | Destroyed Striker 17487 | -2/Research | Lost 3 allies 17519 | -2/Research | Found Imp. Powered Armor 17521 | -2/Research | Found Imp. Powered Armor 17707 | -2/Research | Spotted Executioner 17800 | -2/Research | Warlord invited to help at Command 17817 | -2/Research | Found Prototype Device 17817 | -2/Research | Identified Exp. Thermal Defense Suite 17898 | -2/Research | Build established: Scavenger-Gunner 18086 | -2/Research | Discovered new exit (range 14) 18212 | -2/Research | High security lockdown imminent 18218 | -2/Research | Found Imp. Powered Armor 18222 | -2/Research | Found Imp. Powered Armor 18292 | -2/Research | High security lockdown engaged 18338 | -2/Research | Found Exp. Core Analyzer 18344 | -2/Research | Found Exp. Core Analyzer 18371 | -2/Research | Spotted Striker 18387 | -2/Research | Destroyed 2L-M6L(B) 18418 | -2/Research | Lost 3 allies 18474 | -2/Research | Entered Access 18474 | -1/Access | Evolved 2 slots: Utility x2 18694 | -1/Access | Lost 4 allies 18854 | -1/Access | Destroyed 8 combat bots 18909 | -1/Access | Identified exit to Command 19004 | -1/Access | First assault squad dispatched 19037 | -1/Access | System corruption reached 10% 19074 | -1/Access | Destroyed 8 combat bots 19115 | -1/Access | Lost 13 parts (2p4n4u3w) 19224 | -1/Access | Entered Command 19263 | -1/Command | Core integrity fell below 50% 19306 | -1/Command | Build established: Hacker-Mutant 19318 | -1/Command | Core integrity fell below 20% 19322 | -1/Command | Lost 18 parts (3p7n7u1w) 19322 | -1/Command | Spotted B-99 Colossus 19337 | -1/Command | Spotted Striker 19396 | -1/Command | Destroyed by G-73 Enforcer with Phase Gun Last Messages --------------- 19375_ Acquired 1 matter. 19376_ Drone sends a signal. 19382_ Nuclear Pulse Array destroyed. 19382_ Knocked back. 19382_ Slug penetrates Wall. 19382_ Penetrated by Slug. 19382_ W-44 Eye sends out distress signal. 19386_ System corrupted: Component data lost. 19386_ Slug penetrates Wall. 19386_ Nuclear Pulse Array destroyed. 19386_ Slug penetrates Wall. 19387_ Slug penetrates Terminal. 19387_ Penetrated by Slug. 19387_ Slug penetrates Wall. 19387_ Penetrated by Slug. 19387_ Slug penetrates Wall. 19389_ Slug penetrates Terminal. 19391_ Slug penetrates Wall. 19391_ System Shield destroyed. 19392_ Acquired 8 matter. Map ----- +----------------------------------------------------+ | ??????????????????????????????????????# | | ??????????????????????????????????????# | | ??????????????????????????????????????# | | ??????????????????????????????????????# | | ????????????????????????????###+####### | | ????????????????????????????# ###### | | ????????????????????????????# #????? | | ????????????????????????????# #????? | | ????????????????????????????# #????? | | ????????????????????????????+ #????? | | ????????????????????????????# g#############??? | | ????????????????????????????# g# #??? | | ????????????????????????????# g + = #??? | | ????????????????????????????# Rk# #??? | | ????????????????????????????# g# #??? | | ????????????????????????????# #? != ! #??? | | ????????????????????????????# #? = #??? | | ????????????????????????????# #?? #??? | | ????????????????????????????# #??##########??? | | ????????????####+############ #??????????????? | | ????????????+ #??????????????? | | ????????????+ ######?????????? | | ????????????+ # #?????????? | | ????????????+ # #?????????? | | ????????????+ # #?????????? | | ????????????####+########@ ###### # #?????????? | | ????????????????????????# ###??# # = #?????????? | | ????????????????????????# T"#??# # #?????????? | | ????????????????????????# ""#??# # #?????????? | | ????????????????????????# ###??# # #?????????? | | ????????????????????????# #????# + #?????????? | | ????????????????????????# #?####+######?????????? | | ????????????????????????# #?#! #?????????? | | ????????????????????????# #?# #?????????? | | ????????????????????????# #?# ] #?????????? | | ?????????# ?????????????# #?# #?????????? | | ?????????# ????????????# #?############????????? | | ?????????# ???????????#R #? #????????? | | ?????????# ?####?????# #? #????????? | | ??????????? # ?????# h# #????????? | | ????????????? + T" ???## k# #????????? | | ???????????????# " ####" h# #????????? | | ???????????????#= ;w #????????? | | ???????????????## + #????????? | | ????????????????# " #????????? | | ????????????????# ! # #????????? | | ????????????????# "" # #?######## | | ???????????# #### "" # #??! # | | ???????????# "T # #?? ? | | ???????????# """ #?############??? ??? | +----------------------------------------------------+ Best States ------------- Heat Dissipation 111 Energy Generation 53 Energy Capacity 630 Matter Stores 300 Matter Capacity 400 Sight Range 23 Terrain Scan Range 16 Terrain Scan Density 10 Jamming Range 16 Additional Mass Support 25 Corruption Containment 12 Armor Coverage 950 Resistance: KI 20 Resistance: TH 30 Resistance: EM 20 Core Shielding 30 Propulsion Shielding 33 Point Defense Rating 240 Evasion (%) 72 Targeting Accuracy 20 Target Analysis 12 Core Analysis 8 Armor Integrity Analysis 40 Recoil Reduction 6 Matter Filtering 30 Kinecelleration 50 Offensive Hacking 20 Defensive Hacking 30 Authchip Count 5 Item Schematics ----------------- Hyp. Gauss Cannon | -8/Materials | Scanalyzed Missile Launcher | -8/Materials | Scanalyzed Cesium-ion Thruster | -8/Materials | Scanalyzed Adv. Assault Cannon | -8/Materials | Scanalyzed Imp. Cooling System | -8/Materials | Scanalyzed Rocket Launcher | -8/Materials | Scanalyzed Smartbomb Launcher | -5/Factory | Scanalyzed Magnetic Acceleration Cannon | -5/Factory | Scanalyzed Gravmag Array | -5/Factory | Scanalyzed Adv. System Restoration Module | -5/Factory | Scanalyzed Imp. Kinecellerator | -5/Factory | Scanalyzed Helical Railgun | -4/Factory | Scanalyzed Imp. Gravmag System | -4/Factory | Scanalyzed Imp. Trap Scanner | -4/Factory | Scanalyzed Robot Schematics ------------------ P-60 Hacker | -7/Factory | Hacked Fabricated ------------ P-60 Hacker | x2 | -7/Factory P-60 Hacker | x2 | -7/Factory P-60 Hacker | x2 | -6/Factory | Authchip P-60 Hacker | x2 | -6/Factory | Authchip P-60 Hacker | x2 | -5/Factory Alien Tech Used ----------------- None Achievements -------------- None Challenges ------------ None Game ------ Seed PiercingMetafieldFlakker Manual? 0 Play Time 08:03:38 Cumulative 211.9 hours Start 2024.03.23 @ 17:46:15 End 2024.03.24 @ 22:49:19 Sessions 1 Manual Loads 0 Difficulty Rogue Special Mode None Game No. 92 Rogue 92 Adventurer 0 Explorer 0 Win Type - Total 0 Types 0/0/0/0/0/0/0/0/0 Lore% 62 Gallery% 67 Achievement% 55 Wizard Run 0 Options --------- Layout 0 ASCII 0 Keyboard 1 Movement Arrows Keybinds 0 Fullscreen 1 Font 12/Proggy Map View 83x54 Zoom Use 0% Tactical HUD 1 Map Filters NONE Filters NONE Steam 0 RUN: 585fe098-d0e1-4ca9-97b2-b1f4dd24eb77